bitfinex-derivatives/quotes_SOLF0:USTF0_20220108
["timestamp","ask_amount","ask_price","bid_price","bid_amount"]
[1641684587976,27.66479,142.22,142.12,27.66479]
[1641684588375,27.66479,142.22,142.1,27.66479]
[1641684588876,27.66479,142.22,142.1,31.66479]
[1641684589076,27.66479,142.22,142.11,4.0]
[1641684589981,27.66479,142.25,142.16,27.66479]
[1641684590977,27.66479,142.25,142.13,131.2753]
[1641684591180,16.6605911,142.24,142.13,131.2753]
[1641684591778,5.62518801,142.22,142.1,31.66479]
[1641684591979,27.66479,142.21,142.1,27.66479]
[1641684592278,27.66479,142.21,142.1,31.66479]
[1641684592479,27.66479,142.21,142.11,2.69751017]
[1641684592880,27.66479,142.21,142.11,6.69751017]
[1641684593384,27.66479,142.21,142.12,2.69751017]
[1641684593785,27.66479,142.21,142.12,6.69751017]
[1641684594186,27.66479,142.21,142.14,27.66479]
[1641684595590,5.62507151,142.23,142.14,27.66479]
[1641684595989,6.0,142.24,142.14,27.66479]
[1641684596189,6.0,142.24,142.14,55.32958]
[1641684596490,6.0,142.24,142.15,2.70421405]
[1641684600793,6.0,142.24,142.15,6.70421405]
[1641684600994,6.0,142.24,142.15,2.70421405]
[1641684601195,6.0,142.24,142.15,28.09254642]
[1641684601694,10.0,142.24,142.15,2.70421405]
[1641684601895,4.0,142.23,142.15,2.70421405]
[1641684602094,27.66479,142.22,142.15,2.70421405]
[1641684603001,2.26099297,142.22,142.15,6.70421405]
[1641684603198,2.26099297,142.22,142.16,4.0]
[1641684603498,2.26099297,142.22,142.18,4.0]
[1641684603698,20.83249901,142.24,142.19,4.0]
[1641684603898,6.0,142.24,142.17,6.70421405]
[1641684604199,6.0,142.24,142.17,30.36900405]
[1641684604699,6.0,142.24,142.18,2.70421405]
[1641684606098,6.0,142.24,142.21,4.0]
[1641684606299,6.0,142.24,142.18,2.70421405]
[1641684606300,6.0,142.24,142.2,4.0]
[1641684606902,14.83249901,142.29,142.2,11.02987698]
[1641684607100,14.83249901,142.29,142.21,4.0]
[1641684607501,14.83249901,142.32,142.22,4.0]
[1641684607700,14.83249901,142.32,142.21,2.71300999]
[1641684607902,4.0,142.31,142.21,4.46900999]
[1641684608104,27.66479,142.27,142.21,2.71300999]
[1641684609103,4.0,142.25,142.21,9.99e-06]
[1641684609304,4.0,142.24,142.18,9.99e-06]
[1641684609504,9.62423337,142.25,142.18,9.99e-06]
[1641684609702,16.65955066,142.25,142.18,9.99e-06]
[1641684609902,12.65955066,142.25,142.18,9.99e-06]
[1641684610102,27.66479,142.24,142.18,9.99e-06]
[1641684610403,27.66479,142.24,142.17,27.66479]
[1641684611003,31.66479,142.24,142.17,27.66479]
[1641684611401,27.66479,142.24,142.17,27.66479]
[1641684613104,5.62423337,142.25,142.17,27.66479]
[1641684614807,27.66479,142.27,142.17,27.66479]
[1641684615405,31.66479,142.27,142.17,27.66479]
[1641684615609,4.0,142.23,142.17,27.66479]
[1641684615806,4.0,142.23,142.16,25.38008028]
[1641684616005,5.62518827,142.22,142.16,25.38008028]
[1641684616206,33.28997827,142.22,142.16,25.38008028]
[1641684616407,33.28997827,142.22,142.13,25.38008028]
[1641684616807,6.877,142.23,142.13,25.38008028]
[1641684617707,16.50193246,142.23,142.13,25.38008028]
[1641684617907,12.50193246,142.23,142.13,25.38008028]
[1641684618308,40.16672246,142.23,142.13,25.38008028]
[1641684619407,40.16652661,142.23,142.13,25.38008028]
[1641684619809,12.50173661,142.23,142.13,25.38008028]
[1641684620608,12.50173661,142.23,142.15,14.83249901]
[1641684621010,6.74829023,142.26,142.15,18.83249901]
[1641684621211,14.83249901,142.27,142.17,7.03135986]
[1641684621410,14.83249901,142.27,142.17,11.03135986]
[1641684622311,5.6224066,142.29,142.19,42.49728901]
[1641684623611,4.0,142.28,142.19,42.49728901]
[1641684623810,5.62347043,142.27,142.19,14.83249901]
[1641684624210,9.62347043,142.27,142.19,14.83249901]
[1641684624413,27.66479,142.25,142.19,14.83249901]
[1641684624609,5.62347043,142.27,142.19,14.83249901]
[1641684625411,20.45596944,142.27,142.17,27.66479]
[1641684625621,20.45596944,142.27,142.19,4.0]
[1641684625811,9.34479164,142.29,142.23,7.02839471]
[1641684626012,2.39e-06,142.3,142.23,7.02839471]
[1641684626415,2.39e-06,142.31,142.27,27.66479]
[1641684626613,2.39e-06,142.31,142.24,27.66479]
[1641684627222,5.62065583,142.34,142.24,27.66479]
[1641684629120,27.66479,142.36,142.24,27.66479]
[1641684629721,19.96739774,142.35,142.24,27.66479]
[1641684631223,19.96739774,142.35,142.26,4.0]
[1641684631427,19.96739774,142.35,142.26,7.02715997]
[1641684631625,27.66479,142.36,142.26,7.02715997]
[1641684632528,27.66479,142.36,142.27,27.66479]
[1641684632924,5.61655835,142.44,142.31,4.0]
[1641684633124,5.61655835,142.44,142.3,4.0]
[1641684633325,5.61655835,142.44,142.29,220.54283206]
[1641684633525,9.61655835,142.44,142.29,220.54283206]
[1641684633726,19.95938856,142.43,142.29,220.54283206]
[1641684634126,26.9858079,142.43,142.29,217.5174]
[1641684634328,19.95938856,142.43,142.33,4.0]
[1641684634626,19.95938856,142.43,142.36,27.66479]
[1641684634826,33.28134835,142.44,142.36,31.66479]
[1641684635031,27.66479,142.44,142.36,27.66479]
[1641684635427,27.66479,142.44,142.36,35.91479]
[1641684636026,96.94087228,142.47,142.36,35.91479]
[1641684636226,33.28007228,142.47,142.36,35.91479]
[1641684638931,33.28007228,142.47,142.36,39.91479]
[1641684639231,27.66479,142.49,142.37,4.0]
[1641684639430,27.66479,142.49,142.38,1.754]
[1641684639631,7.02247191,142.51,142.37,1.754]
[1641684639830,6.73515737,142.54,142.42,11.01926789]
[1641684640031,7.02074631,142.55,142.44,4.0]
[1641684640232,7.02074631,142.55,142.42,11.01926789]
[1641684640432,7.02074631,142.55,142.47,27.66479]
[1641684640936,7.02074631,142.55,142.45,27.66479]
[1641684641137,4.0,142.52,142.42,7.01926789]
[1641684641341,11.02123925,142.54,142.39,66.8154]
[1641684641536,7.02123925,142.54,142.41,4.0]
[1641684641738,5.61222749,142.55,142.41,7.01951425]
[1641684641936,19.94741918,142.53,142.41,8.77351425]
[1641684642136,19.94741918,142.53,142.41,7.01951425]
[1641684642539,47.61220918,142.53,142.42,27.66479]
[1641684642936,27.66479,142.53,142.42,29.41879]
[1641684643138,27.66479,142.53,142.43,4.0]
[1641684643541,69.2877,142.56,142.43,11.01852892]
[1641684643739,69.2877,142.56,142.44,5.754]
[1641684643940,64.6972,142.57,142.44,1.754]
[1641684644141,34.39819114,142.58,142.48,4.0]
[1641684644340,27.66479,142.58,142.45,74.0374901]
[1641684644542,27.66479,142.58,142.51,27.66479]
[1641684645143,93.75899,142.61,142.51,27.66479]
[1641684645344,7.01705143,142.62,142.51,31.66479]
[1641684645542,17.95190961,142.68,142.52,4.0]
[1641684645743,7.01557458,142.65,142.56,4.0]
[1641684645942,19.9314099,142.67,142.55,5.61184526]
[1641684646142,19.9314099,142.67,142.56,1.752]
[1641684646342,19.9314099,142.67,142.57,4.0]
[1641684646542,27.66479,142.69,142.61,27.66479]
[1641684646742,27.66479,142.69,142.59,27.66479]
[1641684646946,27.66479,142.69,142.6,1.752]
[1641684647346,27.66479,142.69,142.6,5.752]
[1641684647744,27.66479,142.69,142.6,1.752]
[1641684648548,27.66479,142.69,142.62,27.66479]
[1641684648947,68.0467,142.74,142.64,4.0]
[1641684649149,48.88129755,142.79,142.64,7.00844518]
[1641684649751,48.88129755,142.79,142.65,1.75]
[1641684649950,48.88129755,142.79,142.65,9.88]
[1641684650151,9.68140111,142.79,142.65,9.88]
[1641684650350,7.00844518,142.8,142.65,9.88]
[1641684650552,27.66479,142.75,142.66,27.66479]
[1641684652158,4.0,142.72,142.65,1.75]
[1641684652354,4.0,142.68,142.58,1.752]
[1641684652554,31.6487895,142.65,142.58,1.752]
[1641684652755,27.66479,142.65,142.57,34.67667515]
[1641684652957,27.66479,142.67,142.57,34.67667515]
[1641684653157,27.66479,142.67,142.58,1.752]
[1641684653354,27.66479,142.67,142.57,27.66479]
[1641684655958,27.66479,142.7,142.57,37.27605438]
[1641684656160,27.66479,142.7,142.6,7.01041046]
[1641684656659,27.66479,142.7,142.6,27.66479]
[1641684657260,6.0,142.67,142.6,27.66479]
[1641684658062,6.0,142.67,142.62,7.00918203]
[1641684658661,6.0,142.67,142.6,34.23979]
[1641684658862,6.0,142.67,142.6,41.25020046]
[1641684659461,6.0,142.67,142.6,34.23979]
[1641684660462,6.0,142.67,142.6,41.25020046]
[1641684660663,6.0,142.67,142.6,68.91499046]
[1641684661064,6.0,142.67,142.63,7.00869078]
[1641684661862,0.0001,142.67,142.64,5.60851252]
[1641684662065,0.0001,142.67,142.64,7.36051252]
[1641684662462,0.0001,142.67,142.64,15.22351252]
[1641684662665,0.0001,142.67,142.64,42.88830252]
[1641684663966,0.0001,142.67,142.66,7.00672646]
[1641684664166,0.0001,142.67,142.64,35.52779]
[1641684664368,0.0001,142.67,142.64,7.863]
[1641684664766,27.66479,142.66,142.6,6.575]
[1641684664967,4.0,142.65,142.6,0.0001]
[1641684665168,9.60837628,142.65,142.6,0.0001]
[1641684665870,4.0,142.64,142.6,0.0001]
[1641684666269,0.0199,142.58,142.52,7.01409834]
[1641684666469,27.66479,142.66,142.53,4.0]
[1641684666681,55.32958,142.66,142.54,11.01311452]
[1641684666872,27.66479,142.66,142.56,4.0]
[1641684667172,0.0001,142.67,142.58,7.01114772]
[1641684667571,0.0001,142.67,142.61,7.00991904]
[1641684669072,0.0001,142.67,142.61,70.97351904]
[1641684669972,0.0001,142.67,142.62,1.752]
[1641684670672,0.0001,142.67,142.64,27.66479]
[1641684671572,0.0001,142.67,142.64,40.28148081]
[1641684672175,0.0001,142.67,142.65,4.0]
[1641684672475,0.0001,142.67,142.64,44.28148081]
[1641684672675,0.0001,142.67,142.66,27.66479]
[1641684674579,0.0001,142.67,142.66,38.67200743]
[1641684674777,0.0001,142.67,142.66,45.94978012]
[1641684674979,1.057e-05,142.74,142.69,5.6064699]
[1641684676082,2.2301657,142.76,142.69,5.6064699]
[1641684676285,2.2301657,142.76,142.69,9.6064699]
[1641684676483,2.2301657,142.76,142.69,5.6064699]
[1641684676686,2.2301657,142.76,142.71,27.66479]
[1641684677785,39.19989644,142.81,142.73,7.00378204]
[1641684677986,45.92146049,142.83,142.73,7.00378204]
[1641684678686,45.92146049,142.83,142.75,27.66479]
[1641684678887,2.23664523,142.82,142.75,27.66479]
[1641684679885,2.23664523,142.83,142.75,27.66479]
[1641684682488,2.23664523,142.83,142.72,65.3963]
[1641684682690,3.98101615,142.74,142.72,65.3963]
[1641684682889,72.14534523,142.83,142.71,33.27028329]
[1641684683089,72.14534523,142.83,142.71,100.89048329]
[1641684683291,79.16132665,142.83,142.71,100.89048329]
[1641684683690,9.25262665,142.83,142.74,4.0]
[1641684683894,9.25262665,142.83,142.74,9.60459003]
[1641684684093,9.25262665,142.83,142.74,7.35459003]
[1641684684291,2.23294684,142.82,142.74,7.35459003]
[1641684684694,2.23294684,142.82,142.76,27.66479]
[1641684685296,2.23294684,142.83,142.76,27.66479]
[1641684687194,27.66479,142.84,142.76,27.66479]
[1641684687895,31.66479,142.84,142.76,27.66479]
[1641684688096,27.66479,142.84,142.76,27.66479]
[1641684688898,27.66479,142.84,142.73,7.00378204]
[1641684688899,4.0,142.77,142.72,1.75]
[1641684689102,4.0,142.78,142.69,7.00574471]
[1641684690101,4.0,142.79,142.69,7.00574471]
[1641684690300,4.0,142.78,142.69,7.00574471]
[1641684690700,6.2315588,142.78,142.69,7.00574471]
[1641684690902,6.2315588,142.78,142.7,27.66479]
[1641684691299,2.2315588,142.78,142.7,27.66479]
[1641684691500,27.66479,142.79,142.7,27.66479]
[1641684692602,31.66479,142.79,142.7,27.66479]
[1641684693402,2.2338955,142.78,142.7,27.66479]
[1641684693602,6.2338955,142.78,142.7,27.66479]
[1641684693906,12.2338955,142.78,142.7,27.66479]
[1641684694906,6.0,142.78,142.7,27.66479]
[1641684695406,4.0,142.74,142.7,27.66479]
[1641684695807,10.0,142.78,142.7,27.66479]
[1641684696008,4.0,142.77,142.7,27.66479]
[1641684696410,2.24055922,142.77,142.7,27.66479]
[1641684696610,6.24055922,142.77,142.7,27.66479]
[1641684697012,2.24055922,142.76,142.7,27.66479]
[1641684697211,6.24055922,142.76,142.7,27.66479]
[1641684697912,4.0,142.71,142.65,7.00795403]
[1641684698214,9.632,142.71,142.65,7.00795403]
[1641684699313,9.632,142.71,142.61,103.91820904]
[1641684699314,4.0,142.7,142.61,103.91820904]
[1641684699510,4.0,142.7,142.61,34.67470904]
[1641684700112,4.0,142.69,142.61,34.67470904]
[1641684700513,2.24392783,142.7,142.61,34.67470904]
[1641684701012,31.66479,142.71,142.61,34.67470904]
[1641684701214,27.66479,142.71,142.61,34.67470904]
[1641684701712,4.0,142.65,142.55,39.19989644]
[1641684701913,4.0,142.64,142.55,39.19989644]
[1641684702213,9.6085272,142.64,142.54,46.21325689]
[1641684702413,13.4065272,142.64,142.54,46.21325689]
[1641684702614,4.0,142.62,142.54,46.21325689]
[1641684703014,9.60963042,142.62,142.54,46.21325689]
[1641684703316,27.66479,142.59,142.55,2.70762783]
[1641684704114,4.0,142.56,142.5,27.66479]
[1641684704313,4.0,142.55,142.46,107.06159644]
[1641684704914,5.61189782,142.56,142.46,107.06159644]
[1641684705117,4.0,142.54,142.46,39.19989644]
[1641684705315,27.66479,142.52,142.46,39.19989644]
[1641684705516,27.66479,142.52,142.44,42.49423943]
[1641684706520,27.66479,142.54,142.44,27.66479]
[1641684706718,4.0,142.59,142.49,7.01557458]
[1641684706918,6.73209566,142.61,142.5,7.01483638]
[1641684707321,34.39688566,142.61,142.52,27.66479]
[1641684707518,38.39688566,142.61,142.52,27.66479]
[1641684708118,4.0,142.6,142.52,27.66479]
[1641684709019,38.39688566,142.61,142.52,27.66479]
[1641684709220,34.39688566,142.61,142.52,27.66479]
[1641684710419,4.0,142.6,142.52,27.66479]
[1641684711920,40.39688566,142.61,142.52,27.66479]
[1641684712223,33.66479,142.61,142.52,27.66479]
[1641684713027,6.0,142.61,142.52,34.67888834]
[1641684713226,6.0,142.61,142.55,27.66479]
[1641684714826,6.0,142.61,142.52,34.67888834]
[1641684715229,4.0,142.6,142.52,34.67888834]
[1641684715426,27.66479,142.6,142.52,34.67888834]
[1641684715630,31.66479,142.6,142.52,34.67888834]
[1641684715827,37.27499607,142.6,142.52,34.67888834]
[1641684716827,6.0,142.61,142.52,27.66479]
[1641684717331,6.0,142.61,142.52,55.32958]
[1641684719330,6.0,142.61,142.57,27.66479]
[1641684720728,6.0,142.61,142.54,7.01311452]
[1641684722930,27.66479,142.66,142.57,4.0]
[1641684723130,14.82944943,142.7,142.64,7.00819959]
[1641684723331,14.82944943,142.7,142.65,7.00697194]
[1641684723530,14.82944943,142.7,142.65,42.67276194]
[1641684724331,37.2693808,142.75,142.65,42.67276194]
[1641684725334,4.0,142.74,142.65,35.66579]
[1641684725538,4.0,142.68,142.65,8.001]
[1641684725731,4.0,142.68,142.6,44.24423943]
[1641684725732,4.0,142.68,142.6,14.82944943]
[1641684725933,4.0,142.68,142.59,14.82944943]
[1641684726333,4.0,142.67,142.59,14.82944943]
[1641684726934,4.0,142.67,142.56,74.45863099]
[1641684727634,31.66479,142.67,142.58,27.66479]
[1641684728334,27.66479,142.67,142.58,27.66479]
[1641684729335,42.49423943,142.72,142.62,7.00918203]
[1641684729537,42.49423943,142.72,142.64,27.66479]
[1641684729935,5.60482512,142.74,142.64,27.66479]
[1641684730137,9.60482512,142.74,142.64,27.66479]
[1641684730336,4.0,142.73,142.64,27.66479]
[1641684730539,9.6057662,142.72,142.64,27.66479]
[1641684731535,27.66479,142.72,142.64,27.66479]
[1641684731935,31.66479,142.75,142.64,27.66479]
[1641684732339,5.60497594,142.74,142.64,27.66479]
[1641684732742,9.60497594,142.74,142.64,27.66479]
[1641684733544,5.60497594,142.74,142.64,27.66479]
[1641684734843,27.66479,142.75,142.64,27.66479]
[1641684735844,27.66479,142.75,142.68,27.66479]
[1641684736246,31.66479,142.75,142.68,27.66479]
[1641684736456,37.26931536,142.75,142.68,27.66479]
[1641684736747,37.26931536,142.75,142.64,27.66479]
[1641684736945,37.26931536,142.75,142.64,34.67298959]
[1641684737146,37.26931536,142.75,142.64,27.66479]
[1641684737345,4.0,142.74,142.64,27.66479]
[1641684737546,4.0,142.72,142.64,27.66479]
[1641684737746,9.60575189,142.72,142.64,27.66479]
[1641684737945,5.60636638,142.7,142.64,27.66479]
[1641684738151,13.89736638,142.7,142.64,27.66479]
[1641684738545,17.89736638,142.7,142.64,27.66479]
[1641684738747,4.0,142.69,142.64,27.66479]
[1641684739046,13.89736638,142.7,142.62,27.66479]
[1641684739246,5.60636638,142.7,142.62,27.66479]
[1641684739846,33.27115638,142.7,142.62,27.66479]
[1641684740246,27.66479,142.75,142.65,7.00770848]
[1641684741247,4.0,142.7,142.63,68.5381]
[1641684741446,9.60472976,142.74,142.63,68.5381]
[1641684741646,4.0,142.7,142.63,68.5381]
[1641684741846,27.66479,142.69,142.62,27.66479]
[1641684742448,31.66479,142.69,142.62,27.66479]
[1641684744456,4.0,142.68,142.62,27.66479]
[1641684745260,4.0,142.66,142.59,65.3068]
[1641684745459,4.0,142.67,142.58,27.66479]
[1641684745658,9.60784604,142.66,142.58,27.66479]
[1641684746059,27.66479,142.63,142.58,27.66479]
[1641684747060,31.66479,142.63,142.58,27.66479]
[1641684747862,4.0,142.59,142.54,108.29013943]
[1641684748065,27.66479,142.59,142.54,14.82944943]
[1641684748262,4.0,142.57,142.54,14.82944943]
[1641684748466,4.0,142.58,142.55,2.70522893]
[1641684748864,4.0,142.56,142.55,2.893e-05]
[1641684749070,5.61108063,142.58,142.55,2.893e-05]
[1641684749267,5.61108063,142.58,142.53,14.82944943]
[1641684749466,5.61108063,142.58,142.48,21.84551622]
[1641684750068,27.66479,142.55,142.48,21.84551622]
[1641684750567,27.66479,142.55,142.48,7.01606679]
[1641684750766,27.66479,142.55,142.47,14.82944943]
[1641684751370,27.66479,142.55,142.46,10.50939367]
[1641684751371,27.66479,142.55,142.46,14.82944943]
[1641684751769,5.61175143,142.56,142.49,7.01557458]
[1641684751970,27.66479,142.59,142.52,7.01409834]
[1641684752170,5.60954723,142.62,142.54,7.01286861]
[1641684752370,27.66479,142.63,142.54,7.01286861]
[1641684752568,50.57043438,142.65,142.57,4.0]
[1641684752771,14.82944943,142.65,142.57,11.01139351]
[1641684752970,14.82944943,142.65,142.57,7.01139351]
[1641684753171,14.82944943,142.65,142.57,8.76339351]
[1641684753373,4.0,142.68,142.57,7.01139351]
[1641684753576,4.0,142.69,142.57,7.01139351]
[1641684753775,5.60730338,142.68,142.56,83.84164943]
[1641684753975,9.60730338,142.68,142.56,83.84164943]
[1641684754174,5.60730338,142.68,142.57,27.66479]
[1641684754374,5.60730338,142.68,142.57,34.67642932]
[1641684756875,27.66479,142.69,142.61,4.0]
[1641684757075,6.0,142.7,142.61,12.484]
[1641684757275,6.0,142.7,142.65,7.00770848]
[1641684757477,6.0,142.7,142.63,4.0]
[1641684757478,6.0,142.7,142.67,7.00672646]
[1641684757676,14.82944943,142.74,142.68,4.0]
[1641684757975,14.82944943,142.74,142.69,4.0]
[1641684758175,42.49423943,142.81,142.71,27.66479]
[1641684758375,4.0,142.76,142.71,27.66479]
[1641684758579,4.0,142.76,142.69,27.66479]
[1641684758775,4.0,142.76,142.64,21.83740346]
[1641684759176,4.0,142.76,142.64,7.00795403]
[1641684759375,4.0,142.75,142.62,21.56031627]
[1641684759576,4.0,142.74,142.62,14.82944943]
[1641684759876,4.0,142.74,142.61,7.00967335]
[1641684760078,27.66479,142.72,142.61,34.67446335]
[1641684760678,4.0,142.7,142.61,27.66479]
[1641684761479,4.0,142.69,142.58,140.12980195]
[1641684761677,17.46433367,142.7,142.58,140.12980195]
[1641684762177,17.46433367,142.7,142.58,167.79459195]
[1641684762776,5.60721917,142.68,142.58,167.79459195]
[1641684762978,5.60721917,142.68,142.58,102.97399195]
[1641684763879,11.21452466,142.68,142.58,102.97399195]
[1641684764479,27.66479,142.72,142.63,4.0]
[1641684764680,14.82944943,142.73,142.68,4.0]
[1641684764880,14.82944943,142.73,142.66,20.0]
[1641684764881,14.82944943,142.73,142.66,7.00721743]
[1641684765280,45.19989644,142.76,142.71,4.0]
[1641684765481,45.19989644,142.76,142.72,11.00402732]
[1641684765681,6.0,142.76,142.71,11.00476324]
[1641684765882,14.81353176,142.8,142.73,11.00353679]
[1641684766087,14.81353176,142.8,142.75,4.0]
[1641684766383,14.81353176,142.8,142.78,27.66479]
[1641684766583,27.66479,142.85,142.78,27.66479]
[1641684766981,27.66479,142.85,142.76,27.66479]
[1641684767182,27.66479,142.85,142.76,31.66479]
[1641684767383,27.66479,142.85,142.77,7.00157535]
[1641684767785,7.00672646,142.83,142.76,27.66479]
[1641684767984,4.0,142.81,142.69,1.75]
[1641684768183,4.0,142.8,142.68,68.3889]
[1641684768384,27.66479,142.79,142.69,27.66479]
[1641684768586,4.0,142.77,142.69,27.66479]
[1641684769286,4.0,142.78,142.69,27.66479]
[1641684769487,4.0,142.77,142.69,27.66479]
[1641684769686,4.0,142.74,142.69,27.66479]
[1641684769886,4.0,142.74,142.65,128.4208]
[1641684770085,4.0,142.74,142.64,7.00819959]
[1641684770286,27.66479,142.71,142.64,7.00819959]
[1641684770786,27.66479,142.71,142.62,27.66479]
[1641684770987,31.66479,142.71,142.62,27.66479]
[1641684771488,31.66479,142.71,142.61,7.00967335]
[1641684771890,27.66479,142.71,142.61,7.00967335]
[1641684772290,27.66479,142.71,142.63,27.66479]
[1641684774699,27.66479,142.71,142.61,7.00967335]
[1641684775098,31.66479,142.71,142.61,7.00967335]
[1641684775297,4.0,142.7,142.61,7.00967335]
[1641684775999,4.0,142.69,142.56,7.01213099]
[1641684776200,5.60707104,142.68,142.56,11.01213099]
[1641684776400,33.27186104,142.68,142.6,27.66479]
[1641684776599,33.27186104,142.68,142.58,34.67593772]
[1641684777002,37.27186104,142.68,142.58,34.67593772]
[1641684777304,33.27186104,142.68,142.58,34.67593772]
[1641684777500,27.66479,142.68,142.58,34.67593772]
[1641684777901,102.51880546,142.71,142.58,34.67593772]
[1641684778203,102.51880546,142.71,142.58,40.24693772]
[1641684778401,106.51880546,142.71,142.61,27.66479]
[1641684778602,43.27080546,142.71,142.61,27.66479]
[1641684779100,39.27080546,142.71,142.61,27.66479]
[1641684780301,43.27080546,142.71,142.61,27.66479]
[1641684780902,39.27080546,142.71,142.61,27.66479]
[1641684781105,39.27080546,142.71,142.59,72.5390562]
[1641684781106,4.0,142.66,142.59,72.5390562]
[1641684781308,4.0,142.66,142.59,7.0106562]
[1641684781506,4.0,142.65,142.55,102.67809644]
[1641684781704,4.0,142.65,142.55,39.19989644]
[1641684781907,5.60861405,142.64,142.55,39.19989644]
[1641684782308,6.544,142.64,142.55,27.66479]
[1641684784709,4.0,142.63,142.55,27.66479]
[1641684784909,4.0,142.59,142.54,10.50535713]
[1641684785108,4.0,142.58,142.54,10.50535713]
[1641684785305,4.0,142.59,142.54,10.50535713]
[1641684785507,4.0,142.59,142.5,39.19989644]
[1641684785907,4.0,142.58,142.5,39.19989644]
[1641684786307,9.61042598,142.6,142.5,39.19989644]
[1641684786508,27.66479,142.58,142.5,39.19989644]
[1641684786810,27.66479,142.58,142.47,45.19072587]
[1641684787210,5.61157961,142.57,142.47,45.19072587]
[1641684787410,5.61157961,142.57,142.47,49.19072587]
[1641684787708,4.0,142.61,142.53,7.01336045]
[1641684787908,12.33903582,142.64,142.53,7.01336045]
[1641684788108,12.33903582,142.64,142.53,7.0136064]
[1641684788509,16.33903582,142.64,142.54,27.66479]
[1641684788708,12.33903582,142.64,142.54,27.66479]
[1641684789208,4.0,142.6,142.54,27.66479]
[1641684789409,9.6098566,142.61,142.49,1.752]
[1641684789609,9.6098566,142.61,142.48,46.21596323]
[1641684789810,4.0,142.59,142.48,46.21596323]
[1641684790010,9.61104862,142.58,142.48,46.21596323]
[1641684790215,9.61104862,142.58,142.49,2.69734066]
[1641684790411,27.66479,142.54,142.49,2.69734066]
[1641684791413,27.66479,142.56,142.49,2.69734066]
[1641684792314,5.60995218,142.61,142.49,2.69734066]
[1641684792513,27.66479,142.6,142.51,27.66479]
[1641684793314,27.66479,142.6,142.52,2.69734066]
[1641684794014,27.66479,142.6,142.51,27.66479]
[1641684794416,5.60995218,142.61,142.54,27.66479]
[1641684796417,27.66479,142.6,142.54,27.66479]
[1641684796617,27.66479,142.6,142.51,27.66479]
[1641684797218,27.66479,142.6,142.52,2.69301597]
[1641684797420,31.66479,142.6,142.52,2.69301597]
[1641684797619,27.66479,142.6,142.52,2.69301597]
[1641684798120,31.66479,142.6,142.49,2.69301597]
[1641684798321,5.6109074,142.58,142.49,2.69301597]
[1641684798519,27.66479,142.55,142.49,2.69301597]
[1641684800724,31.66479,142.55,142.49,2.69301597]
[1641684800925,5.61317726,142.53,142.49,2.69301597]
[1641684801925,5.61317726,142.53,142.47,2.69301597]
[1641684802924,6.0,142.55,142.47,2.69301597]
[1641684803528,6.0,142.55,142.47,17.46589021]
[1641684804125,69.1972,142.62,142.53,7.01336045]
[1641684804326,14.77287424,142.66,142.53,7.01336045]
[1641684804525,27.66479,142.65,142.56,27.66479]
[1641684804725,31.66479,142.65,142.56,27.66479]
[1641684805525,31.66479,142.65,142.57,2.69301597]
[1641684806026,15.0921949,142.64,142.57,2.69301597]
[1641684806227,4.0,142.58,142.57,2.69301597]
[1641684806525,31.66479,142.58,142.53,14.77287424]
[1641684806727,33.27600756,142.58,142.53,14.77287424]
[1641684806926,5.61121756,142.58,142.53,14.77287424]
[1641684807127,5.61121756,142.58,142.51,14.77287424]
[1641684808532,5.61121756,142.58,142.52,27.66479]
[1641684808733,27.66479,142.62,142.52,27.66479]
[1641684809531,27.66479,142.62,142.53,14.77287424]
[1641684810532,27.66479,142.62,142.54,14.77287424]
[1641684812935,35.74059622,142.65,142.55,27.66479]
[1641684813335,35.74059622,142.65,142.56,14.77287424]
[1641684813738,5.6089815,142.63,142.56,14.77287424]
[1641684814534,35.74059622,142.65,142.56,14.77287424]
[1641684814535,8.07580622,142.65,142.56,14.77287424]
[1641684814934,8.07580622,142.65,142.6,27.66479]
[1641684815539,14.77287424,142.69,142.6,27.66479]
[1641684815737,14.77287424,142.69,142.62,7.00918203]